[Event "Early-Titled-Tuesday-Blitz-July-09-2024"]
[Site "Chess.com"]
[Date "2024.07.09"]
[Round "2"]
[White "Fh2411"]
[Black "tylityli"]
[Result "0-1"]
[WhiteElo "2583"]
[BlackElo "2400"]
[TimeControl "180+1"]
[EndTime "8:18:03 PDT"]
[Termination "tylityli won by resignation"]

1. d4 {[%clk 0:03:00.9]} 1... Nf6 {[%clk 0:02:59.3]} 2. Nf3 {[%clk 0:03:01.3]}
2... d5 {[%clk 0:02:58.6]} 3. c4 {[%clk 0:03:00.5]} 3... dxc4 {[%clk 0:02:58.4]}
4. e3 {[%clk 0:02:59.4]} 4... a6 {[%clk 0:02:58.7]} 5. Bxc4 {[%clk 0:02:58.9]}
5... b5 {[%clk 0:02:59]} 6. Be2 {[%clk 0:02:57.2]} 6... e6 {[%clk 0:02:58.9]} 7.
O-O {[%clk 0:02:57.7]} 7... c5 {[%clk 0:02:57.9]} 8. a4 {[%clk 0:02:57.9]} 8...
b4 {[%clk 0:02:55.8]} 9. Nbd2 {[%clk 0:02:57.5]} 9... Bb7 {[%clk 0:02:54.6]} 10.
Nc4 {[%clk 0:02:56]} 10... Nbd7 {[%clk 0:02:54.1]} 11. a5 {[%clk 0:02:50.2]}
11... Be7 {[%clk 0:02:52.9]} 12. b3 {[%clk 0:02:38.5]} 12... O-O {[%clk
0:02:50.2]} 13. Bb2 {[%clk 0:02:39.1]} 13... Rc8 {[%clk 0:02:39.8]} 14. Nfe5
{[%clk 0:02:35]} 14... Nxe5 {[%clk 0:02:33.1]} 15. dxe5 {[%clk 0:02:33.2]} 15...
Nd5 {[%clk 0:02:15]} 16. Qc2 {[%clk 0:02:26.1]} 16... Qc7 {[%clk 0:02:09.1]} 17.
Rfd1 {[%clk 0:02:23.7]} 17... Rfd8 {[%clk 0:02:02.9]} 18. Bf3 {[%clk 0:02:05.8]}
18... Bf8 {[%clk 0:01:59.2]} 19. g3 {[%clk 0:01:48.6]} 19... Nxe3 {[%clk
0:01:52.5]} 20. fxe3 {[%clk 0:01:43.8]} 20... Bxf3 {[%clk 0:01:51.4]} 21. Rf1
{[%clk 0:01:39.4]} 21... Qc6 {[%clk 0:01:43.9]} 22. Rf2 {[%clk 0:01:19.5]} 22...
Be4 {[%clk 0:01:40]} 23. Qe2 {[%clk 0:01:20.2]} 23... Bd3 {[%clk 0:01:31.6]} 24.
Qg4 {[%clk 0:01:20]} 24... Qe4 {[%clk 0:01:30.2]} 25. Rf4 {[%clk 0:01:19.1]}
25... Qg6 {[%clk 0:01:28.9]} 26. Qf3 {[%clk 0:01:18.9]} 26... Bc2 {[%clk
0:01:08.4]} 27. Rf1 {[%clk 0:01:09.3]} 27... Rd7 {[%clk 0:01:04.6]} 28. Nb6
{[%clk 0:01:07.1]} 28... Rcd8 {[%clk 0:01:03.2]} 29. Nxd7 {[%clk 0:01:02.8]}
29... Rxd7 {[%clk 0:01:03.5]} 30. e4 {[%clk 0:01:02.1]} 30... c4 {[%clk
0:00:47.3]} 31. bxc4 {[%clk 0:00:59.9]} 31... Bc5+ {[%clk 0:00:46.7]} 32. Kh1
{[%clk 0:01:00.2]} 32... b3 {[%clk 0:00:33]} 33. h4 {[%clk 0:00:46.7]} 33... h5
{[%clk 0:00:31.3]} 34. g4 {[%clk 0:00:32.5]} 34... hxg4 {[%clk 0:00:25.1]} 35.
Rxg4 {[%clk 0:00:33.4]} 35... Qh6 {[%clk 0:00:23.9]} 36. Bc1 {[%clk 0:00:28.7]}
36... Qh7 {[%clk 0:00:19.4]} 37. Kh2 {[%clk 0:00:07.1]} 37... Bd3 {[%clk
0:00:13.9]} 38. Re1 {[%clk 0:00:05.9]} 38... Bc2 {[%clk 0:00:12]} 39. Qg2 {[%clk
0:00:06]} 39... Bf8 {[%clk 0:00:09.3]} 40. Bb2 {[%clk 0:00:06]} 40... Rd3 {[%clk
0:00:08.2]} 41. Rg1 {[%clk 0:00:05.5]} 41... g6 {[%clk 0:00:06.9]} 42. Kh1
{[%clk 0:00:05.1]} 42... Be7 {[%clk 0:00:06.7]} 43. Qh2 {[%clk 0:00:05.4]} 43...
Qh5 {[%clk 0:00:06.1]} 44. Bc1 {[%clk 0:00:05.1]} 44... Rd4 {[%clk 0:00:04.5]}
45. Qg2 {[%clk 0:00:04.2]} 45... Rxc4 {[%clk 0:00:03.8]} 46. Qxc2 {[%clk
0:00:04]} 46... Rxc2 {[%clk 0:00:03.4]} 0-1

[Event "Early-Titled-Tuesday-Blitz-July-09-2024"]
[Site "Chess.com"]
[Date "2024.07.09"]
[Round "2"]
[White "gpsji27"]
[Black "CristhianPortalR"]
[Result "1-0"]
[WhiteElo "2344"]
[BlackElo "2514"]
[TimeControl "180+1"]
[EndTime "8:18:08 PDT"]
[Termination "gpsji27 won by resignation"]

1. d4 {[%clk 0:02:57.5]} 1... d5 {[%clk 0:02:59.9]} 2. Nf3 {[%clk 0:02:52.6]}
2... Nf6 {[%clk 0:02:58.8]} 3. Bg5 {[%clk 0:02:52]} 3... Nbd7 {[%clk 0:02:47.8]}
4. e3 {[%clk 0:02:40.6]} 4... c5 {[%clk 0:02:44.3]} 5. c3 {[%clk 0:02:39.9]}
5... Ne4 {[%clk 0:02:42.9]} 6. Bh4 {[%clk 0:02:37.7]} 6... Qb6 {[%clk 0:02:20]}
7. Qc2 {[%clk 0:02:24]} 7... e6 {[%clk 0:02:13.4]} 8. Bd3 {[%clk 0:02:18]} 8...
f5 {[%clk 0:01:54.2]} 9. Nbd2 {[%clk 0:02:05.3]} 9... Bd6 {[%clk 0:01:50.1]} 10.
O-O {[%clk 0:01:44.4]} 10... O-O {[%clk 0:01:45]} 11. Bg3 {[%clk 0:01:32.2]}
11... Nxg3 {[%clk 0:01:42.2]} 12. hxg3 {[%clk 0:01:20.4]} 12... Nf6 {[%clk
0:01:39.2]} 13. a4 {[%clk 0:01:04]} 13... Bd7 {[%clk 0:01:34.8]} 14. a5 {[%clk
0:00:59.8]} 14... Qc7 {[%clk 0:01:34.6]} 15. dxc5 {[%clk 0:00:59.4]} 15... Bxc5
{[%clk 0:01:33.5]} 16. b4 {[%clk 0:01:00.3]} 16... Bd6 {[%clk 0:01:32]} 17. Rfc1
{[%clk 0:00:57.6]} 17... Rac8 {[%clk 0:01:30.4]} 18. Qb3 {[%clk 0:00:54.6]}
18... e5 {[%clk 0:00:42.7]} 19. e4 {[%clk 0:00:48.4]} 19... fxe4 {[%clk
0:00:21]} 20. Nxe4 {[%clk 0:00:47.8]} 20... Be6 {[%clk 0:00:20.3]} 21. Neg5
{[%clk 0:00:42.6]} 21... Qe7 {[%clk 0:00:18.1]} 22. Nxe6 {[%clk 0:00:42.4]}
22... Qxe6 {[%clk 0:00:19]} 23. Ng5 {[%clk 0:00:35.4]} 23... Qg4 {[%clk
0:00:15.8]} 24. Nxh7 {[%clk 0:00:32]} 24... Nxh7 {[%clk 0:00:07.8]} 25. Qxd5+
{[%clk 0:00:31.4]} 25... Kh8 {[%clk 0:00:06.9]} 26. Bxh7 {[%clk 0:00:28.2]}
26... Rf6 {[%clk 0:00:04.6]} 27. Qe4 {[%clk 0:00:23.3]} 27... Qh5 {[%clk
0:00:04.3]} 28. Qxb7 {[%clk 0:00:10]} 28... Rcf8 {[%clk 0:00:04.5]} 29. Be4
{[%clk 0:00:08.6]} 29... Rxf2 {[%clk 0:00:04.1]} 30. Bf3 {[%clk 0:00:07]} 30...
R2xf3 {[%clk 0:00:02.9]} 31. gxf3 {[%clk 0:00:07]} 31... e4 {[%clk 0:00:03.5]}
32. Qxe4 {[%clk 0:00:06.1]} 32... Bxg3 {[%clk 0:00:03]} 33. Rc2 {[%clk
0:00:06.7]} 33... Bf4 {[%clk 0:00:02.6]} 34. Rg2 {[%clk 0:00:06.4]} 34... Rf6
{[%clk 0:00:02.7]} 35. Kf2 {[%clk 0:00:06.8]} 35... Qh4+ {[%clk 0:00:02.8]} 36.
Ke2 {[%clk 0:00:05.8]} 36... Bg3 {[%clk 0:00:03.2]} 37. Qxh4+ {[%clk 0:00:05.1]}
37... Bxh4 {[%clk 0:00:02.6]} 38. Rh1 {[%clk 0:00:06]} 38... Rh6 {[%clk
0:00:02.9]} 39. Rg4 {[%clk 0:00:06.5]} 39... g5 {[%clk 0:00:02.4]} 40. c4 {[%clk
0:00:05.9]} 40... Re6+ {[%clk 0:00:02.2]} 41. Kd3 {[%clk 0:00:05.6]} 41... Rd6+
{[%clk 0:00:02.2]} 42. Kc3 {[%clk 0:00:06]} 42... Rf6 {[%clk 0:00:02.8]} 43.
Rxg5 {[%clk 0:00:06.2]} 43... Rh6 {[%clk 0:00:01.9]} 44. Rgg1 {[%clk 0:00:04.9]}
44... Bf6+ {[%clk 0:00:01.2]} 45. Kb3 {[%clk 0:00:05.6]} 45... Bg7 {[%clk
0:00:01.6]} 46. Rxh6+ {[%clk 0:00:05.8]} 46... Bxh6 {[%clk 0:00:02.5]} 47. Rh1
{[%clk 0:00:06.2]} 47... Kg7 {[%clk 0:00:02.4]} 48. Rxh6 {[%clk 0:00:06.8]}
48... Kxh6 {[%clk 0:00:03.3]} 49. b5 {[%clk 0:00:07.4]} 49... Kg5 {[%clk
0:00:04.2]} 50. b6 {[%clk 0:00:08.3]} 50... axb6 {[%clk 0:00:04.7]} 51. axb6
{[%clk 0:00:09.2]} 1-0

[Event "Early-Titled-Tuesday-Blitz-July-09-2024"]
[Site "Chess.com"]
[Date "2024.07.09"]
[Round "2"]
[White "djano"]
[Black "dretch"]
[Result "0-1"]
[WhiteElo "2604"]
[BlackElo "2881"]
[TimeControl "180+1"]
[EndTime "8:18:11 PDT"]
[Termination "dretch won by resignation"]

1. Nf3 {[%clk 0:03:00.9]} 1... d5 {[%clk 0:02:51.8]} 2. g3 {[%clk 0:02:59.7]}
2... Bg4 {[%clk 0:02:50.4]} 3. Bg2 {[%clk 0:02:59.7]} 3... Nd7 {[%clk
0:02:50.9]} 4. h3 {[%clk 0:02:57]} 4... Bxf3 {[%clk 0:02:50.9]} 5. exf3 {[%clk
0:02:55.9]} 5... e6 {[%clk 0:02:47.4]} 6. O-O {[%clk 0:02:55.4]} 6... Ngf6
{[%clk 0:02:45]} 7. f4 {[%clk 0:02:55.6]} 7... Bd6 {[%clk 0:02:45.4]} 8. d3
{[%clk 0:02:52.3]} 8... O-O {[%clk 0:02:44.6]} 9. Nd2 {[%clk 0:02:52.6]} 9... c6
{[%clk 0:02:38.9]} 10. Nf3 {[%clk 0:02:52.4]} 10... Qb6 {[%clk 0:02:38.3]} 11.
b3 {[%clk 0:02:47]} 11... Rfe8 {[%clk 0:02:31.8]} 12. a4 {[%clk 0:02:42.6]}
12... e5 {[%clk 0:02:23.3]} 13. fxe5 {[%clk 0:02:38.3]} 13... Nxe5 {[%clk
0:02:22.6]} 14. a5 {[%clk 0:02:34.3]} 14... Nxf3+ {[%clk 0:02:07.5]} 15. Qxf3
{[%clk 0:02:35.2]} 15... Qd4 {[%clk 0:02:05.9]} 16. Ra2 {[%clk 0:02:24]} 16...
Qc3 {[%clk 0:01:55.2]} 17. a6 {[%clk 0:01:51.2]} 17... b5 {[%clk 0:01:49.7]} 18.
Qd1 {[%clk 0:01:40.8]} 18... Qc5 {[%clk 0:01:49]} 19. Kh2 {[%clk 0:01:31.2]}
19... Be5 {[%clk 0:01:42.8]} 20. Qd2 {[%clk 0:01:20.9]} 20... Bc3 {[%clk
0:01:40]} 21. Qf4 {[%clk 0:01:19.2]} 21... Be5 {[%clk 0:01:09.7]} 22. Qf3 {[%clk
0:01:13.8]} 22... Bd4 {[%clk 0:01:07.6]} 23. Qf4 {[%clk 0:01:12.4]} 23... b4
{[%clk 0:01:02.5]} 24. Bd2 {[%clk 0:00:54.7]} 24... Re2 {[%clk 0:00:54.9]} 25.
Be1 {[%clk 0:00:47.3]} 25... Rae8 {[%clk 0:00:51.7]} 26. Bxb4 {[%clk 0:00:37.8]}
26... Qxb4 {[%clk 0:00:45.2]} 27. Ra4 {[%clk 0:00:38.1]} 27... Qc3 {[%clk
0:00:33.9]} 28. Qxd4 {[%clk 0:00:38.2]} 28... Qxd4 {[%clk 0:00:34]} 29. Rxd4
{[%clk 0:00:39.1]} 29... Rxc2 {[%clk 0:00:34.2]} 30. Rb4 {[%clk 0:00:36.6]}
30... Ra2 {[%clk 0:00:27.8]} 31. Ra4 {[%clk 0:00:29.5]} 31... Rxa4 {[%clk
0:00:18.4]} 32. bxa4 {[%clk 0:00:30.4]} 32... Rb8 {[%clk 0:00:18.2]} 33. Re1
{[%clk 0:00:20.3]} 33... Kf8 {[%clk 0:00:17.2]} 34. g4 {[%clk 0:00:17.1]} 34...
Nd7 {[%clk 0:00:14.8]} 35. Rc1 {[%clk 0:00:13.6]} 35... Ne5 {[%clk 0:00:12.6]}
36. d4 {[%clk 0:00:11.9]} 36... Nc4 {[%clk 0:00:12.7]} 37. Bf1 {[%clk
0:00:11.5]} 37... Rb4 {[%clk 0:00:12.8]} 38. a5 {[%clk 0:00:08.5]} 38... Ke7
{[%clk 0:00:12.5]} 39. Kg3 {[%clk 0:00:07.8]} 39... Nxa5 {[%clk 0:00:11.9]} 40.
Rc5 {[%clk 0:00:07.3]} 40... Ra4 {[%clk 0:00:11.6]} 41. Bd3 {[%clk 0:00:06.6]}
41... Ra3 {[%clk 0:00:10.1]} 42. f3 {[%clk 0:00:04.8]} 42... h6 {[%clk
0:00:10.1]} 43. Bf5 {[%clk 0:00:04.8]} 43... Kd6 {[%clk 0:00:10.2]} 44. Bc8
{[%clk 0:00:04.8]} 44... Nb3 {[%clk 0:00:10.5]} 45. Rc3 {[%clk 0:00:04.6]} 45...
Kc7 {[%clk 0:00:05.5]} 46. Bb7 {[%clk 0:00:05.1]} 46... c5 {[%clk 0:00:05.1]}
47. dxc5 {[%clk 0:00:05.3]} 47... d4 {[%clk 0:00:05.3]} 48. Rd3 {[%clk
0:00:05.9]} 48... g5 {[%clk 0:00:02.4]} 49. Bd5 {[%clk 0:00:06.3]} 49... Rxa6
{[%clk 0:00:02.5]} 50. Rxb3 {[%clk 0:00:06.5]} 50... Ra5 {[%clk 0:00:02.6]} 51.
Rb7+ {[%clk 0:00:06.7]} 51... Kc8 {[%clk 0:00:03.1]} 52. Bxf7 {[%clk 0:00:06.8]}
52... Kxb7 {[%clk 0:00:02.5]} 53. c6+ {[%clk 0:00:03.3]} 53... Kc7 {[%clk
0:00:03.4]} 0-1

[Event "Early-Titled-Tuesday-Blitz-July-09-2024"]
[Site "Chess.com"]
[Date "2024.07.09"]
[Round "2"]
[White "EdenDzung06"]
[Black "Aragon"]
[Result "1-0"]
[WhiteElo "2456"]
[BlackElo "2161"]
[TimeControl "180+1"]
[EndTime "8:18:11 PDT"]
[Termination "EdenDzung06 won on time"]

1. d4 {[%clk 0:03:00.9]} 1... d5 {[%clk 0:02:57.1]} 2. c4 {[%clk 0:02:59.5]}
2... e6 {[%clk 0:02:53.2]} 3. Nf3 {[%clk 0:02:58.5]} 3... c6 {[%clk 0:02:43]} 4.
g3 {[%clk 0:02:57.1]} 4... f5 {[%clk 0:02:34]} 5. Bg2 {[%clk 0:02:56.1]} 5...
Nf6 {[%clk 0:02:24.8]} 6. O-O {[%clk 0:02:54.5]} 6... Bd6 {[%clk 0:02:14]} 7. b3
{[%clk 0:02:53.5]} 7... O-O {[%clk 0:02:13.2]} 8. Bb2 {[%clk 0:02:52.6]} 8...
Ne4 {[%clk 0:02:11.7]} 9. Ne5 {[%clk 0:02:51]} 9... Nd7 {[%clk 0:02:10.1]} 10.
f4 {[%clk 0:02:49.9]} 10... Ndf6 {[%clk 0:02:00.9]} 11. e3 {[%clk 0:02:48.2]}
11... Qe8 {[%clk 0:01:58.5]} 12. Nd2 {[%clk 0:02:47.8]} 12... Bb4 {[%clk
0:01:49.9]} 13. Nxe4 {[%clk 0:02:42.9]} 13... Nxe4 {[%clk 0:01:49.7]} 14. a3
{[%clk 0:02:43.3]} 14... Bd2 {[%clk 0:01:38.8]} 15. Qe2 {[%clk 0:02:42.2]} 15...
Bc3 {[%clk 0:01:37.1]} 16. Bxc3 {[%clk 0:02:28.9]} 16... Nxc3 {[%clk 0:01:36.9]}
17. Qd3 {[%clk 0:02:29.3]} 17... Ne4 {[%clk 0:01:17.3]} 18. Rac1 {[%clk
0:02:27.9]} 18... Bd7 {[%clk 0:01:09.9]} 19. Bxe4 {[%clk 0:02:24.8]} 19... fxe4
{[%clk 0:01:09.1]} 20. Qe2 {[%clk 0:02:25.3]} 20... Qe7 {[%clk 0:01:09.1]} 21.
Qh5 {[%clk 0:02:21.6]} 21... Be8 {[%clk 0:01:08.5]} 22. Qg4 {[%clk 0:02:18.7]}
22... Rf6 {[%clk 0:01:04.9]} 23. c5 {[%clk 0:02:08.9]} 23... Bg6 {[%clk
0:01:03.6]} 24. Qe2 {[%clk 0:02:01.2]} 24... Raf8 {[%clk 0:00:58.8]} 25. Kg2
{[%clk 0:01:55.3]} 25... Bf5 {[%clk 0:00:56.9]} 26. g4 {[%clk 0:01:54.5]} 26...
Bg6 {[%clk 0:00:56.8]} 27. h4 {[%clk 0:01:48.7]} 27... Be8 {[%clk 0:00:56.2]}
28. g5 {[%clk 0:01:46.6]} 28... Rf5 {[%clk 0:00:55.8]} 29. Rh1 {[%clk
0:01:33.6]} 29... a6 {[%clk 0:00:54.5]} 30. Rcg1 {[%clk 0:01:31]} 30... Qc7
{[%clk 0:00:53.4]} 31. b4 {[%clk 0:01:30.1]} 31... Qd8 {[%clk 0:00:52.5]} 32.
Qg4 {[%clk 0:01:20.2]} 32... Qc7 {[%clk 0:00:52]} 33. h5 {[%clk 0:01:18.8]}
33... a5 {[%clk 0:00:42.7]} 34. Rb1 {[%clk 0:01:08.5]} 34... b6 {[%clk
0:00:40.4]} 35. bxa5 {[%clk 0:01:03.9]} 35... bxc5 {[%clk 0:00:38.7]} 36. a6
{[%clk 0:00:56.5]} 36... Qa7 {[%clk 0:00:31.2]} 37. Rb7 {[%clk 0:00:32.1]} 37...
Qxa6 {[%clk 0:00:27.1]} 38. Rhb1 {[%clk 0:00:32.5]} 38... cxd4 {[%clk 0:00:25]}
39. exd4 {[%clk 0:00:30.3]} 39... Qxa3 {[%clk 0:00:19.7]} 40. h6 {[%clk
0:00:29.6]} 40... g6 {[%clk 0:00:17.2]} 41. Rg7+ {[%clk 0:00:17.9]} 41... Kh8
{[%clk 0:00:17.4]} 42. Rbb7 {[%clk 0:00:18]} 42... Bf7 {[%clk 0:00:08.8]} 43.
Rgxf7 {[%clk 0:00:12.5]} 43... R5xf7 {[%clk 0:00:08.5]} 44. Nxf7+ {[%clk
0:00:12.7]} 44... Kg8 {[%clk 0:00:08.3]} 45. Ne5 {[%clk 0:00:09.3]} 45... Qa2+
{[%clk 0:00:07.6]} 46. Kh3 {[%clk 0:00:09.2]} 46... Qa3+ {[%clk 0:00:06.9]} 47.
Kh4 {[%clk 0:00:09.5]} 47... Qa1 {[%clk 0:00:05.9]} 48. Qxe6+ {[%clk 0:00:09.7]}
48... Kh8 {[%clk 0:00:04.8]} 49. Rxh7+ {[%clk 0:00:09.4]} 49... Kxh7 {[%clk
0:00:04.9]} 50. Qxg6+ {[%clk 0:00:10]} 1-0

[Event "Early-Titled-Tuesday-Blitz-July-09-2024"]
[Site "Chess.com"]
[Date "2024.07.09"]
[Round "2"]
[White "iwanyu"]
[Black "Ginger_GM"]
[Result "1-0"]
[WhiteElo "2881"]
[BlackElo "2599"]
[TimeControl "180+1"]
[EndTime "8:18:12 PDT"]
[Termination "iwanyu won by resignation"]

1. d4 {[%clk 0:03:00.9]} 1... e6 {[%clk 0:02:59.1]} 2. Bf4 {[%clk 0:02:56.3]}
2... b6 {[%clk 0:02:58.1]} 3. Nf3 {[%clk 0:02:55.6]} 3... Bb7 {[%clk 0:02:58.5]}
4. e3 {[%clk 0:02:56.1]} 4... d6 {[%clk 0:02:57.5]} 5. c4 {[%clk 0:02:52.3]}
5... Nd7 {[%clk 0:02:56.8]} 6. Nc3 {[%clk 0:02:52.4]} 6... h6 {[%clk 0:02:52.4]}
7. e4 {[%clk 0:02:51.1]} 7... g5 {[%clk 0:02:51.8]} 8. Be3 {[%clk 0:02:50.5]}
8... Bg7 {[%clk 0:02:52.3]} 9. d5 {[%clk 0:02:46.5]} 9... a6 {[%clk 0:02:44]}
10. Nd4 {[%clk 0:02:42.5]} 10... Qe7 {[%clk 0:02:35.2]} 11. dxe6 {[%clk
0:02:28.9]} 11... fxe6 {[%clk 0:02:34.1]} 12. Qh5+ {[%clk 0:02:29.3]} 12... Qf7
{[%clk 0:02:09.5]} 13. Nxe6 {[%clk 0:02:22.7]} 13... Bxc3+ {[%clk 0:02:09.1]}
14. bxc3 {[%clk 0:02:23.6]} 14... Qxh5 {[%clk 0:02:09]} 15. Ng7+ {[%clk
0:02:24.2]} 15... Kf7 {[%clk 0:02:08.6]} 16. Nxh5 {[%clk 0:02:25.1]} 16... Bxe4
{[%clk 0:01:58.4]} 17. f3 {[%clk 0:02:20.6]} 17... Bg6 {[%clk 0:01:56.2]} 18.
Ng3 {[%clk 0:02:18.8]} 18... Re8 {[%clk 0:01:54.8]} 19. Kf2 {[%clk 0:02:17.9]}
19... Ngf6 {[%clk 0:01:53.4]} 20. h4 {[%clk 0:02:17.3]} 20... g4 {[%clk
0:01:51.4]} 21. h5 {[%clk 0:02:17.6]} 21... Bc2 {[%clk 0:01:45.9]} 22. Rc1
{[%clk 0:02:10.2]} 22... Ba4 {[%clk 0:01:45.5]} 23. Bd3 {[%clk 0:02:10.1]} 23...
Ne5 {[%clk 0:01:43.8]} 24. Be2 {[%clk 0:01:55.6]} 24... gxf3 {[%clk 0:01:39.1]}
25. gxf3 {[%clk 0:01:51.3]} 25... Bc6 {[%clk 0:01:37.8]} 26. Nf5 {[%clk
0:01:44.5]} 26... Ke6 {[%clk 0:01:02.2]} 27. Ng7+ {[%clk 0:01:42]} 27... Kf7
{[%clk 0:00:59.8]} 28. Nxe8 {[%clk 0:01:41.4]} 28... Nxe8 {[%clk 0:00:59.3]} 29.
Bd4 {[%clk 0:01:25.7]} 29... Nf6 {[%clk 0:00:56.2]} 30. c5 {[%clk 0:01:21.1]}
30... bxc5 {[%clk 0:00:54.9]} 31. Bxe5 {[%clk 0:01:19.5]} 31... dxe5 {[%clk
0:00:55.2]} 32. Bxa6 {[%clk 0:01:19.7]} 32... Ra8 {[%clk 0:00:45.9]} 33. Bc4+
{[%clk 0:01:18.9]} 33... Bd5 {[%clk 0:00:46]} 34. Bxd5+ {[%clk 0:01:13.9]} 34...
Nxd5 {[%clk 0:00:46.9]} 35. Rc2 {[%clk 0:01:14.3]} 35... Nf4 {[%clk 0:00:46.4]}
36. Rd2 {[%clk 0:01:01.4]} 36... c4 {[%clk 0:00:42.1]} 37. Rb1 {[%clk
0:00:58.3]} 37... Ke6 {[%clk 0:00:38.7]} 38. Rb7 {[%clk 0:00:54.1]} 38... Ra3
{[%clk 0:00:37]} 39. Rxc7 {[%clk 0:00:52]} 39... Rxc3 {[%clk 0:00:28]} 40. Rc6+
{[%clk 0:00:51.4]} 40... Kf5 {[%clk 0:00:27.6]} 41. Rxh6 {[%clk 0:00:48.3]}
41... e4 {[%clk 0:00:26.4]} 42. fxe4+ {[%clk 0:00:31.4]} 42... Ke5 {[%clk
0:00:26.5]} 43. Rh8 {[%clk 0:00:24.4]} 43... Kxe4 {[%clk 0:00:24.9]} 44. Re8+
{[%clk 0:00:23.7]} 44... Kf5 {[%clk 0:00:24.1]} 45. h6 {[%clk 0:00:23.4]} 45...
Rh3 {[%clk 0:00:24]} 46. Rd4 {[%clk 0:00:19.6]} 46... Nd3+ {[%clk 0:00:17.7]}
47. Ke2 {[%clk 0:00:17.2]} 47... Rxh6 {[%clk 0:00:13.8]} 48. Rxc4 {[%clk
0:00:16.8]} 48... Nf4+ {[%clk 0:00:12.7]} 49. Kd2 {[%clk 0:00:14.3]} 49... Rh2+
{[%clk 0:00:12.8]} 50. Kc3 {[%clk 0:00:13.5]} 50... Nd5+ {[%clk 0:00:09.8]} 51.
Kd4 {[%clk 0:00:13.7]} 51... Rd2+ {[%clk 0:00:09.6]} 52. Kc5 {[%clk 0:00:13.8]}
52... Nf6 {[%clk 0:00:09.8]} 53. Ra8 {[%clk 0:00:12.1]} 53... Ne4+ {[%clk
0:00:09]} 54. Kc6 {[%clk 0:00:09.9]} 54... Nf6 {[%clk 0:00:04.6]} 55. a4 {[%clk
0:00:09.4]} 55... Ke6 {[%clk 0:00:04.5]} 56. a5 {[%clk 0:00:08.7]} 56... Rd6+
{[%clk 0:00:03.8]} 57. Kb5 {[%clk 0:00:08.5]} 57... Nd7 {[%clk 0:00:03.6]} 58.
Rc6 {[%clk 0:00:07.9]} 1-0

[Event "Early-Titled-Tuesday-Blitz-July-09-2024"]
[Site "Chess.com"]
[Date "2024.07.09"]
[Round "2"]
[White "KevinGeorgeMicheal"]
[Black "ShiroglanTalibov"]
[Result "1/2-1/2"]
[WhiteElo "2521"]
[BlackElo "2910"]
[TimeControl "180+1"]
[EndTime "8:18:13 PDT"]
[Termination "Game drawn by repetition"]

1. Nf3 {[%clk 0:03:00]} 1... b6 {[%clk 0:02:58.3]} 2. g3 {[%clk 0:03:00.1]} 2...
Bb7 {[%clk 0:02:58.5]} 3. Bg2 {[%clk 0:03:00.4]} 3... f5 {[%clk 0:02:58.2]} 4.
O-O {[%clk 0:03:00.8]} 4... Nf6 {[%clk 0:02:58.7]} 5. d3 {[%clk 0:03:01.3]} 5...
g6 {[%clk 0:02:58.5]} 6. Nbd2 {[%clk 0:03:01.7]} 6... Bg7 {[%clk 0:02:58.9]} 7.
e4 {[%clk 0:03:01.3]} 7... fxe4 {[%clk 0:02:58.5]} 8. Ng5 {[%clk 0:03:01.8]}
8... O-O {[%clk 0:02:57.1]} 9. Ngxe4 {[%clk 0:03:01.7]} 9... Nxe4 {[%clk
0:02:56.3]} 10. Nxe4 {[%clk 0:03:01.4]} 10... Nc6 {[%clk 0:02:56.6]} 11. c3
{[%clk 0:02:59.7]} 11... e5 {[%clk 0:02:56.4]} 12. Bg5 {[%clk 0:02:58.2]} 12...
Qe8 {[%clk 0:02:51.7]} 13. Nc5 {[%clk 0:02:25.6]} 13... Bc8 {[%clk 0:02:43.4]}
14. Nb3 {[%clk 0:02:18.7]} 14... Kh8 {[%clk 0:02:40.7]} 15. Qd2 {[%clk
0:02:15.9]} 15... d6 {[%clk 0:02:37.8]} 16. d4 {[%clk 0:02:05.5]} 16... Bb7
{[%clk 0:02:23]} 17. Bh6 {[%clk 0:02:01.5]} 17... Bxh6 {[%clk 0:02:14]} 18. Qxh6
{[%clk 0:02:01]} 18... Rb8 {[%clk 0:02:14.9]} 19. Rae1 {[%clk 0:01:59.1]} 19...
Qf7 {[%clk 0:02:13.6]} 20. Qd2 {[%clk 0:01:56.9]} 20... exd4 {[%clk 0:02:02.9]}
21. Nxd4 {[%clk 0:01:54.1]} 21... Nxd4 {[%clk 0:01:56.2]} 22. Qxd4+ {[%clk
0:01:53.9]} 22... Kg8 {[%clk 0:01:56.2]} 23. Bxb7 {[%clk 0:01:49.2]} 23... Rxb7
{[%clk 0:01:57.1]} 24. c4 {[%clk 0:01:49.5]} 24... Rbb8 {[%clk 0:01:56.8]} 25.
b3 {[%clk 0:01:43.4]} 25... Rbe8 {[%clk 0:01:49.8]} 26. Qd2 {[%clk 0:01:41.8]}
26... Qf3 {[%clk 0:01:44.9]} 27. Rxe8 {[%clk 0:01:39.1]} 27... Rxe8 {[%clk
0:01:45.8]} 28. Re1 {[%clk 0:01:39.2]} 28... Rxe1+ {[%clk 0:01:46]} 29. Qxe1
{[%clk 0:01:39]} 29... Kf7 {[%clk 0:01:46.9]} 30. Qd2 {[%clk 0:01:34.7]} 30...
h5 {[%clk 0:01:40.5]} 31. Qh6 {[%clk 0:01:23.1]} 31... Qf6 {[%clk 0:01:31.7]}
32. Kg2 {[%clk 0:01:16.4]} 32... Ke6 {[%clk 0:01:28.2]} 33. Qh7 {[%clk
0:01:10.1]} 33... Qf5 {[%clk 0:01:24.6]} 34. Qxc7 {[%clk 0:01:03.6]} 34... Qe4+
{[%clk 0:01:24.2]} 35. Kg1 {[%clk 0:00:57.3]} 35... Qb1+ {[%clk 0:01:23.8]} 36.
Kg2 {[%clk 0:00:56]} 36... Qxa2 {[%clk 0:01:24.7]} 37. Qg7 {[%clk 0:00:46.6]}
37... Qc2 {[%clk 0:01:20.3]} 38. Qxa7 {[%clk 0:00:40.9]} 38... Qxb3 {[%clk
0:01:16]} 39. Qg7 {[%clk 0:00:39.5]} 39... Qd3 {[%clk 0:01:09.8]} 40. Qh8 {[%clk
0:00:29.9]} 40... Kd7 {[%clk 0:01:01.3]} 41. Qb2 {[%clk 0:00:25.4]} 41... Kc7
{[%clk 0:00:58.2]} 42. Qa2 {[%clk 0:00:24.7]} 42... Kb7 {[%clk 0:00:53.6]} 43.
Qa4 {[%clk 0:00:23.4]} 43... Qe4+ {[%clk 0:00:47.7]} 44. Kg1 {[%clk 0:00:22.7]}
44... Qc6 {[%clk 0:00:44.5]} 45. Qb4 {[%clk 0:00:21]} 45... Qc5 {[%clk
0:00:41.5]} 46. Qb3 {[%clk 0:00:20.2]} 46... g5 {[%clk 0:00:41.8]} 47. Qf3+
{[%clk 0:00:19.3]} 47... Ka7 {[%clk 0:00:40.4]} 48. Qxh5 {[%clk 0:00:19.6]}
48... Qxc4 {[%clk 0:00:40.7]} 49. Qxg5 {[%clk 0:00:20]} 49... b5 {[%clk
0:00:40.7]} 50. Qe7+ {[%clk 0:00:19.8]} 50... Kb6 {[%clk 0:00:40.9]} 51. Qxd6+
{[%clk 0:00:20]} 51... Ka5 {[%clk 0:00:41.6]} 52. Qa3+ {[%clk 0:00:20]} 52...
Qa4 {[%clk 0:00:41.5]} 53. Qc3+ {[%clk 0:00:18]} 53... Qb4 {[%clk 0:00:40.4]}
54. Qa1+ {[%clk 0:00:16.6]} 54... Qa4 {[%clk 0:00:39.8]} 55. Qc3+ {[%clk
0:00:16.3]} 55... b4 {[%clk 0:00:35.4]} 56. Qc5+ {[%clk 0:00:15.9]} 56... Ka6
{[%clk 0:00:35.6]} 57. Qd6+ {[%clk 0:00:16]} 57... Kb7 {[%clk 0:00:36.1]} 58.
Qe7+ {[%clk 0:00:16.2]} 58... Kb6 {[%clk 0:00:35.4]} 59. Qd6+ {[%clk 0:00:16.4]}
59... Kb7 {[%clk 0:00:35.9]} 60. Qe7+ {[%clk 0:00:16.6]} 60... Kc8 {[%clk
0:00:36.4]} 61. Qe6+ {[%clk 0:00:15]} 61... Kb7 {[%clk 0:00:24.7]} 62. Qe7+
{[%clk 0:00:15]} 1/2-1/2